fUST/lending_fUST_20250522
["ID","MTS","AMOUNT","RATE_DAILY","PERIOD"]
[361897352,1747876249462,-430.0,0.00023287,2]
[361897354,1747876249471,-539.02,0.00023287,2]
[361897356,1747876249482,-457.39,0.00023287,2]
[361897358,1747876249492,-175.97,0.00023287,2]
[361897360,1747876249502,-430.0,0.00023287,2]
[361897362,1747876249512,-1220.1,0.00023287,2]
[361897364,1747876249523,-430.0,0.00023287,2]
[361897366,1747876249533,-796.41,0.00023287,2]
[361897369,1747876249545,-454.72,0.00023287,2]
[361897371,1747876249555,-430.0,0.00023287,2]
[361897372,1747876249565,-151.0,0.00023287,7]
[361897375,1747876249575,-430.0,0.00023287,2]
[361897376,1747876249585,-430.0,0.00023287,2]
[361897378,1747876249595,-430.0,0.00023287,2]
[361897380,1747876249605,-430.0,0.00023287,2]
[361897382,1747876249615,-430.0,0.00023287,2]
[361897384,1747876249625,-430.0,0.00023287,2]
[361897386,1747876249634,-430.0,0.00023287,2]
[361897388,1747876249644,-456.85,0.00023287,2]
[361897390,1747876249654,-157.03675015,0.00023287,2]
[361897392,1747876249663,-430.0,0.00023287,2]
[361897394,1747876249672,-1372.55,0.00023287,2]
[361897396,1747876249681,-430.0,0.00023287,2]
[361897398,1747876249690,-1121.34,0.00023287,2]
[361897400,1747876249699,-479.33,0.00023287,2]
[361897402,1747876249709,-430.0,0.00023287,2]
[361897404,1747876249719,-151.0,0.00023287,7]
[361897406,1747876249729,-624.08,0.00023287,2]
[361897408,1747876249740,-430.0,0.00023287,2]
[361897410,1747876249749,-430.0,0.00023287,2]
[361897411,1747876249758,-296.65,0.00023287,2]
[361897413,1747876249771,-430.0,0.00023287,2]
[361897415,1747876249781,-241.08,0.00023287,2]
[361897417,1747876249791,-430.0,0.00023287,2]
[361897419,1747876249800,-430.0,0.00023287,2]
[361897421,1747876249810,-451.63,0.00023287,2]
[361897423,1747876249819,-583.65,0.00023287,2]
[361897425,1747876249829,-269.070984,0.00023287,7]
[361897427,1747876249838,-430.0,0.00023287,2]
[361897429,1747876249848,-430.0,0.00023287,2]
[361897431,1747876249857,-188.71,0.00023287,2]
[361897433,1747876249867,-4146.57,0.00023287,2]
[361897435,1747876249877,-513.00338008,0.00023314,9]
[361897437,1747876249887,-2612.09559718,0.00023446,2]
[361897439,1747876249896,-513.00338008,0.00023452,9]
[361897441,1747876249905,-430.0,0.00023561,2]
[361897443,1747876249915,-544.49572516,0.00023561,2]
[361897445,1747876249924,-430.0,0.00023561,2]
[361897447,1747876249935,-430.0,0.00023561,2]
[361897449,1747876249945,-430.0,0.00023561,2]
[361897451,1747876249954,-430.0,0.00023561,2]
[361897453,1747876249964,-255.4,0.00023561,2]
[361897455,1747876249973,-430.0,0.00023561,2]
[361897457,1747876249982,-430.0,0.00023561,2]
[361897459,1747876249991,-430.0,0.00023561,2]
[361897461,1747876250001,-430.0,0.00023561,2]
[361897463,1747876250010,-430.0,0.00023561,2]
[361897465,1747876250020,-305.3,0.00023561,2]
[361897467,1747876250029,-430.0,0.00023561,2]
[361897469,1747876250039,-235.97,0.00023561,2]
[361897471,1747876250048,-430.0,0.00023561,2]
[361897473,1747876250058,-430.0,0.00023561,2]
[361897475,1747876250067,-229.85,0.00023561,2]
[361897477,1747876250085,-430.0,0.00023561,2]
[361897479,1747876250095,-430.0,0.00023561,2]
[361897480,1747876250104,-430.0,0.00023561,2]
[361897482,1747876250114,-430.0,0.00023561,2]
[361897485,1747876250124,-430.0,0.00023561,2]
[361897486,1747876250133,-430.0,0.00023561,2]
[361897488,1747876250143,-430.0,0.00023561,2]
[361897490,1747876250154,-430.0,0.00023561,2]
[361897492,1747876250163,-248.61,0.00023561,2]
[361897494,1747876250172,-430.0,0.00023561,2]
[361897496,1747876250182,-1176.120388,0.00023561,7]
[361897498,1747876250192,-430.0,0.00023561,2]
[361897500,1747876250201,-1176.120388,0.00023561,7]
[361897502,1747876250211,-430.0,0.00023561,2]
[361897504,1747876250220,-430.0,0.00023561,2]
[361897506,1747876250230,-253.08,0.00023561,2]
[361897508,1747876250239,-430.0,0.00023561,2]
[361897510,1747876250249,-430.0,0.00023561,2]
[361897512,1747876250258,-1915.63,0.00023561,2]
[361897514,1747876250270,-430.0,0.00023561,2]
[361897516,1747876250280,-430.0,0.00023561,2]
[361897518,1747876250289,-1130.29,0.00023561,2]
[361897520,1747876250299,-151.0,0.00023561,7]
[361897522,1747876250310,-430.0,0.00023561,2]
[361897524,1747876250320,-430.0,0.00023561,2]
[361897526,1747876250329,-430.0,0.00023561,2]
[361897537,1747876250424,-430.0,0.00023561,2]
[361897539,1747876250441,-430.0,0.00023561,2]
[361897541,1747876250452,-430.0,0.00023561,2]
[361897543,1747876250461,-430.0,0.00023561,2]
[361897545,1747876250471,-169.58,0.00023561,2]
[361897546,1747876250480,-457.39,0.00023561,2]
[361897548,1747876250490,-430.0,0.00023561,2]
[361897550,1747876250500,-1220.1,0.00023561,2]
[361897552,1747876250509,-430.0,0.00023561,2]
[361897554,1747876250521,-796.41,0.00023561,2]
[361897556,1747876250531,-454.72,0.00023561,2]
[361897558,1747876250542,-430.0,0.00023561,2]
[361897560,1747876250552,-430.0,0.00023561,2]
[361897562,1747876250564,-151.0,0.00023561,7]
[361897564,1747876250575,-152.0,0.00023561,2]
[361897566,1747876250584,-330.16,0.00023561,2]
[361897568,1747876250594,-430.0,0.00023561,2]
[361897570,1747876250604,-430.0,0.00023561,2]
[361897572,1747876250614,-456.85,0.00023561,2]
[361897574,1747876250623,-430.0,0.00023561,2]
[361897576,1747876250633,-1372.55,0.00023561,2]
[361897578,1747876250643,-430.0,0.00023561,2]
[361897580,1747876250652,-1121.34,0.00023561,2]
[361897582,1747876250662,-544.8,0.00023561,2]
[361897584,1747876250671,-624.08,0.00023561,2]
[361897586,1747876250680,-430.0,0.00023561,2]
[361897588,1747876250690,-430.0,0.00023561,2]
[361897589,1747876250700,-430.0,0.00023561,2]
[361897591,1747876250709,-430.0,0.00023561,2]
[361897593,1747876250718,-451.63,0.00023561,2]
[361897595,1747876250728,-583.65,0.00023561,2]
[361897597,1747876250737,-153.48,0.00023561,2]
[361897599,1747876250746,-430.0,0.00023561,2]
[361897601,1747876250755,-513.00338008,0.0002359,9]
[361897603,1747876250767,-151.0,0.0002359,7]
[361897605,1747876250776,-151.0,0.0002359,7]
[361897607,1747876250786,-151.0,0.0002359,7]
[361897609,1747876250795,-151.0,0.0002359,7]
[361897611,1747876250805,-151.0,0.0002359,7]
[361897613,1747876250814,-151.0,0.0002359,7]
[361897615,1747876250824,-151.0,0.0002359,7]
[361897617,1747876250833,-151.0,0.0002359,7]
[361897619,1747876250843,-151.0,0.0002359,7]
[361897620,1747876250852,-151.0,0.0002359,7]
[361897621,1747876250861,-154.667387,0.0002359,7]
[361897622,1747876250870,-154.667387,0.0002359,7]
[361897623,1747876250879,-151.0,0.0002359,7]
[361897624,1747876250889,-151.0,0.0002359,7]
[361897625,1747876250898,-197.177541,0.0002359,7]
[361897626,1747876250907,-197.177541,0.0002359,7]
[361897627,1747876250916,-513.00338008,0.00023728,9]
[361897628,1747876250926,-160.0,0.00023747,3]
[361897629,1747876250935,-1000.0,0.000238,2]
[361897630,1747876250944,-249.87754601,0.00023835,2]
[361897631,1747876250953,-462.43,0.00023835,2]
[361897632,1747876250963,-430.0,0.00023835,2]
[361897634,1747876250972,-430.0,0.00023835,2]
[361897636,1747876250981,-430.0,0.00023835,2]
[361897638,1747876250991,-430.0,0.00023835,2]
[361897640,1747876251000,-430.0,0.00023835,2]
[361897642,1747876251010,-445.97634671,0.00023835,2]
[361897644,1747876251020,-430.0,0.00023835,2]
[361897646,1747876251029,-430.0,0.00023835,2]
[361897648,1747876251038,-369.42639036,0.00023835,2]
[361897650,1747876251048,-430.0,0.00023835,2]
[361897652,1747876251057,-430.0,0.00023835,2]
[361897654,1747876251067,-430.0,0.00023835,2]
[361897656,1747876251081,-430.0,0.00023835,2]
[361897658,1747876251090,-430.0,0.00023835,2]
[361897660,1747876251100,-430.0,0.00023835,2]
[361897662,1747876251109,-430.0,0.00023835,2]
[361897664,1747876251124,-430.0,0.00023835,2]
[361897666,1747876251134,-532.89,0.00023835,2]
[361897668,1747876251144,-430.0,0.00023835,2]
[361897670,1747876251155,-316.190862,0.00023835,7]
[361897672,1747876251165,-316.190862,0.00023835,7]
[361897674,1747876251174,-430.0,0.00023835,2]
[361897676,1747876251183,-576.4,0.00023835,2]
[361897678,1747876251193,-544.47,0.00023835,2]
[361897680,1747876251203,-426.98,0.00023835,2]
[361897682,1747876251213,-1915.63,0.00023835,2]
[361897684,1747876251222,-430.0,0.00023835,2]
[361897686,1747876251232,-430.0,0.00023835,2]
[361897688,1747876251242,-1130.29,0.00023835,2]
[361897690,1747876251251,-430.0,0.00023835,2]
[361897692,1747876251260,-430.0,0.00023835,2]
[361897694,1747876251270,-430.0,0.00023835,2]
[361897695,1747876251279,-430.0,0.00023835,2]
[361897698,1747876251290,-430.0,0.00023835,2]
[361897700,1747876251300,-430.0,0.00023835,2]
[361897702,1747876251310,-457.39,0.00023835,2]
[361897704,1747876251318,-430.0,0.00023835,2]
[361897706,1747876251329,-1220.1,0.00023835,2]
[361897708,1747876251339,-430.0,0.00023835,2]
[361897710,1747876251349,-796.41,0.00023835,2]
[361897712,1747876251358,-454.72,0.00023835,2]
[361897714,1747876251368,-219.56,0.00023835,2]
[361897716,1747876251378,-430.0,0.00023835,2]
[361897718,1747876251387,-430.0,0.00023835,2]
[361897720,1747876251398,-559.73,0.00023835,2]
[361897722,1747876251407,-456.85,0.00023835,2]
[361897724,1747876251417,-430.0,0.00023835,2]
[361897726,1747876251427,-1372.55,0.00023835,2]
[361897728,1747876251436,-430.0,0.00023835,2]
[361897730,1747876251446,-1121.34,0.00023835,2]
[361897732,1747876251455,-151.0,0.00023835,7]
[361897734,1747876251465,-624.08,0.00023835,2]
[361897736,1747876251475,-430.0,0.00023835,2]
[361897738,1747876251484,-430.0,0.00023835,2]
[361897740,1747876251494,-430.0,0.00023835,2]
[361897742,1747876251504,-430.0,0.00023835,2]
[361897744,1747876251514,-451.63,0.00023835,2]
[361897746,1747876251526,-583.65,0.00023835,2]
[361897748,1747876251535,-430.0,0.00023835,2]
[361897750,1747876251544,-513.00338008,0.00023866,10]
[361897752,1747876251554,-513.00338008,0.00024003,10]
[361897754,1747876251564,-430.0,0.00024109,2]
[361897756,1747876251573,-430.0,0.00024109,2]
[361897758,1747876251582,-430.0,0.00024109,2]
[361897760,1747876251591,-430.0,0.00024109,2]
[361897762,1747876251601,-430.0,0.00024109,2]
[361897764,1747876251610,-160.91,0.00024109,2]
[361897766,1747876251620,-430.0,0.00024109,2]
[361897768,1747876251630,-192.49,0.00024109,2]
[361897770,1747876251640,-430.0,0.00024109,2]
[361897772,1747876251649,-430.0,0.00024109,2]
[361897774,1747876251659,-369.25,0.00024109,2]
[361897776,1747876251667,-430.0,0.00024109,2]
[361897778,1747876251677,-430.0,0.00024109,2]
[361897780,1747876251686,-430.0,0.00024109,2]
[361897782,1747876251696,-430.0,0.00024109,2]
[361897784,1747876251705,-430.0,0.00024109,2]
[361897786,1747876251714,-430.0,0.00024109,2]
[361897788,1747876251724,-1915.63,0.00024109,2]
[361897790,1747876251734,-430.0,0.00024109,2]
[361897792,1747876251743,-430.0,0.00024109,2]
[361897794,1747876251753,-1130.29,0.00024109,2]
[361897805,1747876251852,-430.0,0.00024109,2]
[361897807,1747876251863,-430.0,0.00024109,2]
[361897810,1747876251872,-430.0,0.00024109,2]
[361897812,1747876251882,-430.0,0.00024109,2]
[361897813,1747876251891,-430.0,0.00024109,2]
[361897816,1747876251901,-430.0,0.00024109,2]
[361897818,1747876251910,-457.39,0.00024109,2]
[361897820,1747876251920,-430.0,0.00024109,2]
[361897822,1747876251930,-1220.1,0.00024109,2]
[361897824,1747876251940,-367.44,0.00024109,2]
[361897826,1747876251950,-796.41,0.00024109,2]
[361897828,1747876251960,-454.72,0.00024109,2]
[361897830,1747876251969,-151.0,0.00024109,7]
[361897832,1747876251978,-430.0,0.00024109,2]
[361897834,1747876251988,-430.0,0.00024109,2]
[361897836,1747876251998,-456.85,0.00024109,2]
[361897838,1747876252008,-430.0,0.00024109,2]
[361897840,1747876252020,-1372.55,0.00024109,2]
[361897842,1747876252031,-430.0,0.00024109,2]
[361897844,1747876252042,-1121.34,0.00024109,2]
[361897846,1747876252053,-624.08,0.00024109,2]
[361897848,1747876252063,-430.0,0.00024109,2]
[361897850,1747876252075,-430.0,0.00024109,2]
[361897852,1747876252085,-430.0,0.00024109,2]
[361897854,1747876252094,-430.0,0.00024109,2]
[361897856,1747876252104,-451.63,0.00024109,2]
[361897858,1747876252115,-583.65,0.00024109,2]
[361897860,1747876252125,-360.37,0.00024109,2]
[361897862,1747876252136,-2612.09559718,0.00024123,2]
[361897865,1747876252147,-513.00338008,0.00024141,10]
[361897866,1747876252157,-158.374359,0.00024192,8]
[361897868,1747876252167,-513.00338008,0.00024279,10]
[361897870,1747876252177,-430.0,0.00024383,2]
[361897872,1747876252187,-430.0,0.00024383,2]
[361897874,1747876252197,-430.0,0.00024383,2]
[361897876,1747876252208,-430.0,0.00024383,2]
[361897878,1747876252218,-151.0,0.00024383,7]
[361897881,1747876252228,-198.37,0.00024383,2]
[361897883,1747876252239,-430.0,0.00024383,2]
[361897884,1747876252250,-1082.829136,0.00024383,7]
[361897887,1747876252260,-1082.829136,0.00024383,7]
[361897889,1747876252278,-430.0,0.00024383,2]
[361897891,1747876252289,-430.0,0.00024383,2]
[361897893,1747876252299,-430.0,0.00024383,2]
[361897895,1747876252309,-430.0,0.00024383,2]
[361897897,1747876252320,-430.0,0.00024383,2]
[361897899,1747876252330,-430.0,0.00024383,2]
[361897901,1747876252340,-1176.120388,0.00024383,7]
[361897903,1747876252351,-395.73,0.00024383,2]
[361897906,1747876252360,-1176.120388,0.00024383,7]
[361897908,1747876252371,-430.0,0.00024383,2]
[361897910,1747876252382,-1915.63,0.00024383,2]
[361897912,1747876252392,-483.32,0.00024383,2]
[361897914,1747876252403,-430.0,0.00024383,2]
[361897916,1747876252414,-1130.29,0.00024383,2]
[361897918,1747876252425,-151.0,0.00024383,7]
[361897920,1747876252435,-287.64,0.00024383,2]
[361897922,1747876252446,-430.0,0.00024383,2]
[361897924,1747876252457,-430.0,0.00024383,2]
[361897926,1747876252466,-430.0,0.00024383,2]
[361897928,1747876252476,-430.0,0.00024383,2]
[361897930,1747876252487,-430.0,0.00024383,2]
[361897932,1747876252497,-457.39,0.00024383,2]
[361897935,1747876252520,-430.0,0.00024383,2]
[361897938,1747876252542,-1220.1,0.00024383,2]
[361897941,1747876252562,-796.41,0.00024383,2]
[361897945,1747876252583,-454.72,0.00024383,2]
[361897948,1747876252604,-430.0,0.00024383,2]
[361897951,1747876252627,-151.0,0.00024383,7]
[361897954,1747876252644,-430.0,0.00024383,2]
[361897957,1747876252665,-456.85,0.00024383,2]
[361897960,1747876252684,-201.88,0.00024383,2]
[361897962,1747876252701,-1372.55,0.00024383,2]
[361897965,1747876252717,-498.92,0.00024383,2]
[361897968,1747876252735,-1121.34,0.00024383,2]
[361897971,1747876252755,-624.08,0.00024383,2]
[361897974,1747876252775,-430.0,0.00024383,2]
[361897977,1747876252790,-562.48,0.00024383,2]
[361897979,1747876252804,-430.0,0.00024383,2]
[361897982,1747876252824,-430.0,0.00024383,2]
[361897985,1747876252842,-451.63,0.00024383,2]
[361897988,1747876252860,-583.65,0.00024383,2]
[361897991,1747876252876,-661.956976,0.00024401,2]
[361897993,1747876252891,-513.00338008,0.00024417,11]
[361897996,1747876252910,-513.00338008,0.00024555,11]
[361897999,1747876252927,-430.0,0.00024657,2]
[361898002,1747876252943,-232.36,0.00024657,2]
[361898004,1747876252960,-222.24,0.00024657,2]
[361898007,1747876252975,-430.0,0.00024657,2]
[361898009,1747876252990,-430.0,0.00024657,2]
[361898012,1747876253005,-430.0,0.00024657,2]
[361898015,1747876253022,-430.0,0.00024657,2]
[361898017,1747876253038,-377.12,0.00024657,2]
[361898020,1747876253056,-430.0,0.00024657,2]
[361898023,1747876253072,-430.0,0.00024657,2]
[361898025,1747876253088,-430.0,0.00024657,2]
[361898028,1747876253104,-430.0,0.00024657,2]
[361898030,1747876253120,-1915.63,0.00024657,2]
[361898033,1747876253136,-430.0,0.00024657,2]
[361898036,1747876253150,-1130.29,0.00024657,2]
[361898038,1747876253165,-289.31,0.00024657,2]
[361898041,1747876253181,-430.0,0.00024657,2]
[361898043,1747876253196,-430.0,0.00024657,2]
[361898046,1747876253211,-430.0,0.00024657,2]
[361898049,1747876253227,-430.0,0.00024657,2]
[361898051,1747876253243,-457.39,0.00024657,2]
[361898054,1747876253258,-430.0,0.00024657,2]
[361898057,1747876253275,-1220.1,0.00024657,2]
[361898059,1747876253287,-796.41,0.00024657,2]
[361898061,1747876253297,-436.34180666,0.00024657,2]
[361898094,1747876253613,-18.37819334,0.00024657,2]
[361898096,1747876253624,-430.0,0.00024657,2]
[361898098,1747876253634,-430.0,0.00024657,2]
[361898100,1747876253645,-456.85,0.00024657,2]
[361898102,1747876253655,-341.46780729,0.00024657,2]
[361898105,1747876253671,-1031.08219271,0.00024657,2]
[361898107,1747876253681,-1121.34,0.00024657,2]
[361898109,1747876253691,-624.08,0.00024657,2]
[361898111,1747876253701,-430.0,0.00024657,2]
[361898113,1747876253711,-430.0,0.00024657,2]
[361898115,1747876253720,-430.0,0.00024657,2]
[361898117,1747876253731,-451.63,0.00024657,2]
[361898119,1747876253740,-583.65,0.00024657,2]
[361898121,1747876253750,-500.0,0.00024658,2]
[361898123,1747876253760,-7.24637515,0.00024658,2]
[361898134,1747876253856,-691.95583024,0.00022191,2]
[361898137,1747876253868,-49308.04416976,0.00022191,2]
[361898139,1747876253878,-492.75362485,0.00024658,2]
[361898141,1747876253888,-500.0,0.00024658,2]
[361898143,1747876253898,-500.0,0.00024658,2]
[361898145,1747876253907,-612.24036586,0.00024658,2]
[361898147,1747876253917,-500.0,0.00024658,2]
[361898149,1747876253927,-500.0,0.00024658,2]
[361898151,1747876253937,-500.0,0.00024658,2]
[361898153,1747876253948,-500.0,0.00024658,2]
[361898155,1747876253958,-500.0,0.00024658,2]
[361898157,1747876253967,-316.190862,0.00024658,7]
[361898159,1747876253977,-316.190862,0.00024658,7]
[361898161,1747876253987,-513.00338008,0.00024693,11]
[361898163,1747876253996,-160.0,0.000247,4]
[361898165,1747876254006,-160.79208214,0.000247,5]
[361898167,1747876254017,-151.0,0.00024754,7]
[361898169,1747876254027,-368.871146,0.00024754,7]
[361898171,1747876254037,-368.871146,0.00024754,7]
[361898173,1747876254047,-5000.0,0.00024754,2]
[361898175,1747876254057,-1050.21,0.000248,5]
[361898177,1747876254070,-171.481249,0.000248,7]
[361898179,1747876254080,-2612.09559718,0.000248,2]
[361898181,1747876254089,-800.0,0.00024802,2]
[361898183,1747876254099,-513.00338008,0.00024831,12]
[361898185,1747876254111,-800.0,0.0002485,2]
[361898187,1747876254121,-500.0,0.00024873,2]
[361898189,1747876254131,-500.0,0.00024873,2]
[361898192,1747876254142,-500.0,0.00024873,2]
[361898193,1747876254151,-600.0,0.00024873,2]
[361898196,1747876254162,-151.10108399,0.00024873,2]
[361898198,1747876254172,-564.11399247,0.00024873,2]
[361898199,1747876254181,-500.0,0.00024873,2]
[361898202,1747876254191,-150.0,0.00024873,2]
[361898204,1747876254201,-500.0,0.00024873,2]
[361898206,1747876254210,-159.05485592,0.00024877,2]
[361898207,1747876254220,-152.378,0.00024892,2]
[361898210,1747876254230,-150.0,0.00024892,2]
[361898211,1747876254241,-155.355,0.00024892,2]
[361898213,1747876254251,-228.665,0.00024892,2]
[361898216,1747876254261,-1013.712,0.00024892,2]
[361898218,1747876254271,-2235.0,0.00024892,2]
[361898220,1747876254281,-708.962,0.00024892,2]
[361898222,1747876254290,-800.0,0.00024897,2]
[361898224,1747876254300,-800.0,0.00024898,2]
[361898226,1747876254310,-5989.02,0.000249,7]
[361898228,1747876254319,-13569.52,0.000249,2]
[361898230,1747876254330,-7623.64,0.000249,7]
[361898232,1747876254339,-719.0,0.000249,3]
[361898234,1747876254349,-719.0,0.000249,3]
[361898236,1747876254358,-152.0,0.000249,3]
[361898238,1747876254368,-719.0,0.000249,3]
[361898240,1747876254378,-152.0,0.000249,3]
[361898242,1747876254388,-152.0,0.000249,3]
[361898244,1747876254398,-152.0,0.000249,3]
[361898246,1747876254407,-151.0,0.000249,7]
[361898248,1747876254417,-151.0,0.000249,7]
[361898250,1747876254426,-999.617606,0.000249,2]
[361898252,1747876254436,-999.617606,0.000249,2]
[361898253,1747876254446,-151.0,0.000249,7]
[361898255,1747876254456,-151.0,0.000249,7]
[361898257,1747876254466,-272.90784499,0.000249,3]
[361898259,1747876254475,-152.0,0.000249,3]
[361898262,1747876254485,-152.0,0.000249,3]
[361898264,1747876254494,-152.0,0.000249,3]
[361898266,1747876254506,-187.0,0.000249,3]
[361898268,1747876254516,-151.0,0.000249,7]
[361898270,1747876254526,-354.693745,0.000249,7]
[361898272,1747876254536,-354.693745,0.000249,7]
[361898274,1747876254546,-354.693745,0.000249,7]
[361898275,1747876254556,-354.693745,0.000249,7]
[361898277,1747876254566,-151.0,0.000249,7]
[361898280,1747876254576,-194.334208,0.000249,7]
[361898282,1747876254586,-151.0,0.000249,7]
[361898284,1747876254596,-151.449414,0.000249,7]
[361898286,1747876254606,-368.871146,0.000249,7]
[361898288,1747876254615,-368.871146,0.000249,7]
[361898290,1747876254625,-151.0,0.000249,7]
[361898292,1747876254634,-151.0,0.000249,7]
[361898294,1747876254644,-151.0,0.000249,7]
[361898296,1747876254654,-248.0817,0.000249,7]
[361898298,1747876254664,-151.0,0.000249,7]
[361898300,1747876254674,-151.0,0.000249,7]
[361898302,1747876254684,-151.0,0.000249,7]
[361898304,1747876254694,-151.0,0.000249,7]
[361898306,1747876254704,-151.0,0.000249,2]
[361898308,1747876254714,-1082.829136,0.000249,7]
[361898310,1747876254724,-1082.829136,0.000249,7]
[361898312,1747876254733,-1082.829136,0.000249,7]
[361898314,1747876254743,-1082.829136,0.000249,7]
[361898316,1747876254753,-151.0,0.000249,7]
[361898318,1747876254763,-151.0,0.000249,7]
[361898320,1747876254772,-151.0,0.000249,7]
[361898322,1747876254782,-151.0,0.000249,7]
[361898324,1747876254792,-151.0,0.000249,7]
[361898326,1747876254801,-151.0,0.000249,7]
[361898328,1747876254813,-154.667387,0.000249,7]
[361898330,1747876254822,-154.667387,0.000249,7]
[361898332,1747876254832,-154.667387,0.000249,7]
[361898334,1747876254842,-154.667387,0.000249,7]
[361898336,1747876254851,-1176.120388,0.000249,7]
[361898338,1747876254861,-1176.120388,0.000249,7]
[361898340,1747876254871,-1176.120388,0.000249,7]
[361898342,1747876254881,-1176.120388,0.000249,7]
[361898344,1747876254890,-151.0,0.000249,7]
[361898346,1747876254899,-151.0,0.000249,7]
[361898348,1747876254909,-151.0,0.000249,7]
[361898350,1747876254918,-151.0,0.000249,7]
[361898352,1747876254928,-889.0,0.000249,2]
[361898354,1747876254938,-4636.21056435,0.000249,2]
[361898356,1747876254948,-151.0,0.000249,7]
[361898358,1747876254957,-151.0,0.000249,7]
[361898360,1747876254967,-197.177541,0.000249,7]
[361898362,1747876254977,-197.177541,0.000249,7]
[361898364,1747876254986,-197.177541,0.000249,7]
[361898366,1747876254996,-197.177541,0.000249,7]
[361898368,1747876255006,-10008.37494735,0.000249,2]
[361898370,1747876255021,-4508.81024627,0.000249,2]
[361898372,1747876255032,-13767.12793426,0.000249,2]
[361898374,1747876255045,-2086.8534869,0.000249,2]
[361898376,1747876255057,-6092.37393581,0.000249,2]
[361898391,1747876255345,-26499.46627959,0.000249,2]
[361898394,1747876255358,-401.92323987,0.000249,2]
[361898396,1747876255369,-9157.41794489,0.000249,2]
[361898398,1747876255381,-705.1420001,0.000249,2]
[361898400,1747876255392,-31437.8519579,0.000249,2]
[361898402,1747876255404,-9895.08150465,0.000249,2]
[361898405,1747876255416,-346172.70033778,0.000249,2]
[361898407,1747876255427,-1000.0,0.000249,2]
[361902227,1747876440401,171.610524,0.00013699,2]
[361902228,1747877148245,-222.97884125,0.00020139,2]
[361902230,1747877242076,-202.62897956,0.00019682,2]
[361902231,1747877250267,-1018.3560004,0.00019682,2]
[361902232,1747877251113,-155.7979105,0.00019682,2]
[361902234,1747877350179,-2256.15030584,0.00019682,2]
[361902235,1747877350201,-677.25591369,0.00020342,2]
[361902236,1747877351154,-2643.96756352,0.00020342,2]
[361902237,1747877351177,-160.227096,0.00020547,2]
[361902238,1747877351202,-300.0,0.00020602,2]
[361902239,1747877351225,-1200.0,0.00020602,2]
[361902240,1747877351246,-300.0,0.00020602,2]
[361902241,1747877351268,-270.2439505,0.00020602,2]
[361902242,1747877351288,-207.93827198,0.00020602,2]
[361902243,1747877351310,-500.0,0.00020602,2]
[361902244,1747877351331,-500.0,0.00020602,2]
[361902245,1747877351353,-276.82999741,0.00020602,2]
[361902246,1747877351376,-500.0,0.00020602,2]
[361902247,1747877351397,-500.0,0.00020602,2]
[361902248,1747877351422,-500.0,0.00020602,2]